fUST/lending_fUST_20250713
["ID","MTS","AMOUNT","RATE_DAILY","PERIOD"]
[371731854,1752406249206,-702.72671407,0.00018761,2]
[371731855,1752406249216,-702.72671407,0.00018761,2]
[371731856,1752406249225,-275.434605,0.00018762,2]
[371731857,1752406249235,-275.434605,0.00018762,2]
[371731858,1752406249245,-3474.16075237,0.00018762,2]
[371731859,1752406249255,-500.0,0.00018773,2]
[371731860,1752406249265,-500.0,0.00018773,2]
[371731861,1752406249275,-502.3432928,0.00018773,2]
[371731862,1752406249285,-500.0,0.00018773,2]
[371731863,1752406249296,-503.94399516,0.00018773,2]
[371731864,1752406249306,-500.0,0.00018773,2]
[371731865,1752406249317,-161.37660368,0.00018773,2]
[371731866,1752406249327,-500.0,0.00018773,2]
[371731867,1752406249337,-500.52366226,0.00018773,2]
[371731868,1752406249347,-500.76965941,0.00018773,2]
[371731869,1752406249356,-500.0,0.00018773,2]
[371731870,1752406249366,-404.28639574,0.00018849,2]
[371731871,1752406249376,-367.95531876,0.000189,2]
[371731872,1752406249395,-151.0,0.00018904,2]
[371731873,1752406249405,-460.0,0.00018904,2]
[371731874,1752406249415,-460.0,0.00018904,2]
[371731875,1752406249430,-460.0,0.00018904,2]
[371731876,1752406249440,-212.92219118,0.00018904,2]
[371731877,1752406249450,-495.55339422,0.00018904,2]
[371731878,1752406249459,-460.0,0.00018904,2]
[371731879,1752406249469,-2027.87,0.00018904,2]
[371731880,1752406249479,-460.0,0.00018904,2]
[371731881,1752406249490,-460.0,0.00018904,2]
[371731882,1752406249505,-482.84,0.00018904,2]
[371731883,1752406249515,-501.71,0.00018904,2]
[371731884,1752406249525,-460.0,0.00018904,2]
[371731885,1752406249535,-705.3,0.00018904,2]
[371731886,1752406249544,-1636.31,0.00018904,2]
[371731887,1752406249554,-460.0,0.00018904,2]
[371731888,1752406249564,-471.8,0.00018904,2]
[371731889,1752406249575,-460.0,0.00018904,2]
[371731890,1752406249587,-868.24,0.00018904,2]
[371731891,1752406249596,-558.07,0.00018904,2]
[371731892,1752406249606,-1070.61,0.00018904,2]
[371731893,1752406249615,-460.0,0.00018904,2]
[371731894,1752406249625,-460.0,0.00018904,2]
[371731895,1752406249635,-460.0,0.00018904,2]
[371731896,1752406249644,-466.56,0.00018904,2]
[371731897,1752406249655,-460.0,0.00018904,2]
[371731898,1752406249664,-460.0,0.00018904,2]
[371731899,1752406249674,-244.26,0.00018904,2]
[371731900,1752406249684,-847.51,0.00018904,2]
[371731901,1752406249694,-484.49,0.00018904,2]
[371731902,1752406249704,-1195.82,0.00018904,2]
[371731903,1752406249714,-475.48,0.00018904,2]
[371731904,1752406249724,-1074.94,0.00018904,2]
[371731905,1752406249734,-460.0,0.00018904,2]
[371731906,1752406249744,-653.92,0.00018904,2]
[371731907,1752406249754,-460.0,0.00018904,2]
[371731908,1752406249763,-1940.16,0.00018904,2]
[371731909,1752406249773,-460.0,0.00018904,2]
[371731910,1752406249783,-1955.59,0.00018904,2]
[371731911,1752406249794,-771.2,0.00018904,2]
[371731912,1752406249803,-460.0,0.00018904,2]
[371731913,1752406249813,-460.0,0.00018904,2]
[371731914,1752406249824,-1543.73,0.00018904,2]
[371731915,1752406249834,-508.67,0.00018904,2]
[371731916,1752406249844,-151.0,0.00018964,2]
[371731917,1752406249854,-500.0,0.00018964,2]
[371731918,1752406249863,-3474.16075237,0.00019072,2]
[371731919,1752406249873,-3058.28407055,0.00019103,2]
[371731920,1752406249883,-2008.76050271,0.00019103,2]
[371731921,1752406249893,-12598.31844336,0.0001915,2]
[371731922,1752406249902,-151.0,0.00019152,2]
[371731923,1752406249912,-151.0,0.00019152,2]
[371731924,1752406250035,-151.0,0.00019152,2]
[371731925,1752406250046,-275.434605,0.00019177,2]
[371731926,1752406250057,-275.434605,0.00019177,2]
[371731927,1752406250067,-151.0,0.00019178,2]
[371731928,1752406250077,-652.742851,0.00019178,2]
[371731929,1752406250086,-652.742851,0.00019178,2]
[371731930,1752406250096,-460.0,0.00019178,2]
[371731931,1752406250106,-151.0,0.00019178,2]
[371731932,1752406250117,-460.0,0.00019178,2]
[371731933,1752406250126,-152.090588,0.00019178,2]
[371731934,1752406250136,-151.548509,0.00019178,2]
[371731935,1752406250146,-265.862484,0.00019178,2]
[371731936,1752406250155,-151.0,0.00019178,2]
[371731937,1752406250165,-460.0,0.00019178,2]
[371731938,1752406250174,-460.0,0.00019178,2]
[371731939,1752406250183,-151.0,0.00019178,2]
[371731940,1752406250193,-2027.87,0.00019178,2]
[371731941,1752406250202,-460.0,0.00019178,2]
[371731942,1752406250212,-460.0,0.00019178,2]
[371731943,1752406250221,-482.84,0.00019178,2]
[371731944,1752406250231,-501.71,0.00019178,2]
[371731945,1752406250241,-460.0,0.00019178,2]
[371731946,1752406250251,-705.3,0.00019178,2]
[371731947,1752406250260,-1636.31,0.00019178,2]
[371731948,1752406250269,-460.0,0.00019178,2]
[371731949,1752406250286,-471.8,0.00019178,2]
[371731950,1752406250299,-460.0,0.00019178,2]
[371731951,1752406250310,-151.0,0.00019178,2]
[371731952,1752406250320,-868.24,0.00019178,2]
[371731953,1752406250331,-558.07,0.00019178,2]
[371731954,1752406250341,-1070.61,0.00019178,2]
[371731955,1752406250351,-460.0,0.00019178,2]
[371731956,1752406250361,-460.0,0.00019178,2]
[371731957,1752406250371,-460.0,0.00019178,2]
[371731958,1752406250382,-151.0,0.00019178,2]
[371731959,1752406250392,-198.38958192,0.00019178,2]
[371731960,1752406250402,-466.56,0.00019178,2]
[371731961,1752406250413,-151.0,0.00019178,2]
[371731962,1752406250423,-460.0,0.00019178,2]
[371731963,1752406250433,-460.0,0.00019178,2]
[371731964,1752406250444,-847.51,0.00019178,2]
[371731965,1752406250454,-484.49,0.00019178,2]
[371731966,1752406250464,-1195.82,0.00019178,2]
[371731967,1752406250475,-475.48,0.00019178,2]
[371731968,1752406250485,-1074.94,0.00019178,2]
[371731969,1752406250501,-460.0,0.00019178,2]
[371731970,1752406250512,-653.92,0.00019178,2]
[371731971,1752406250522,-460.0,0.00019178,2]
[371731972,1752406250533,-1940.16,0.00019178,2]
[371731973,1752406250544,-460.0,0.00019178,2]
[371731974,1752406250554,-1955.59,0.00019178,2]
[371731975,1752406250564,-771.2,0.00019178,2]
[371731976,1752406250574,-460.0,0.00019178,2]
[371731977,1752406250584,-460.0,0.00019178,2]
[371731978,1752406250594,-1543.73,0.00019178,2]
[371731979,1752406250604,-298.205529,0.00019178,2]
[371731980,1752406250617,-666.0,0.00019178,2]
[371731981,1752406250626,-360.0,0.00019205,2]
[371731982,1752406250636,-500.0,0.00019231,2]
[371731983,1752406250646,-500.0,0.00019231,2]
[371731984,1752406250656,-590.40244496,0.00019321,2]
[371731985,1752406250667,-502.07498449,0.00019321,2]
[371731986,1752406250676,-500.0,0.00019321,2]
[371731987,1752406250687,-500.0,0.00019321,2]
[371731988,1752406250696,-151.0,0.00019328,2]
[371731989,1752406250705,-151.0,0.00019329,2]
[371731990,1752406250715,-171.008502,0.00019329,2]
[371731991,1752406250725,-151.0,0.00019329,2]
[371731992,1752406250734,-275.434605,0.00019329,2]
[371731993,1752406250744,-275.434605,0.00019329,2]
[371731994,1752406250754,-100000.0,0.00019329,2]
[371731995,1752406250764,-3474.16075237,0.00019383,2]
[371731996,1752406250774,-17379.31,0.000194,2]
[371731997,1752406250784,-151.0,0.000194,2]
[371731998,1752406250794,-151.0,0.000194,2]
[371731999,1752406250804,-151.0,0.000194,2]
[371732000,1752406250814,-151.0,0.000194,2]
[371732001,1752406250824,-151.0,0.000194,2]
[371732002,1752406250834,-236.993936,0.000194,2]
[371732003,1752406250844,-1300.0,0.0001942,2]
[371732004,1752406250854,-3340.98577376,0.0001943,2]
[371732005,1752406250865,-151.0,0.00019451,2]
[371732006,1752406250875,-151.0,0.00019451,2]
[371732007,1752406250885,-151.0,0.00019452,2]
[371732008,1752406250895,-460.0,0.00019452,2]
[371732009,1752406250905,-460.0,0.00019452,2]
[371732010,1752406250915,-460.0,0.00019452,2]
[371732011,1752406250925,-460.0,0.00019452,2]
[371732012,1752406250935,-2027.87,0.00019452,2]
[371732013,1752406250945,-460.0,0.00019452,2]
[371732014,1752406250955,-460.0,0.00019452,2]
[371732015,1752406250965,-482.84,0.00019452,2]
[371732016,1752406250975,-501.71,0.00019452,2]
[371732017,1752406250986,-460.0,0.00019452,2]
[371732018,1752406250996,-705.3,0.00019452,2]
[371732019,1752406251016,-1636.31,0.00019452,2]
[371732020,1752406251034,-460.0,0.00019452,2]
[371732021,1752406251050,-471.8,0.00019452,2]
[371732022,1752406251065,-460.0,0.00019452,2]
[371732024,1752406251081,-868.24,0.00019452,2]
[371732025,1752406251097,-558.07,0.00019452,2]
[371732026,1752406251113,-1070.61,0.00019452,2]
[371732027,1752406251129,-460.0,0.00019452,2]
[371732028,1752406251141,-460.0,0.00019452,2]
[371732029,1752406251154,-460.0,0.00019452,2]
[371732030,1752406251169,-466.56,0.00019452,2]
[371732031,1752406251184,-460.0,0.00019452,2]
[371732032,1752406251198,-847.51,0.00019452,2]
[371732033,1752406251213,-484.49,0.00019452,2]
[371732034,1752406251228,-1195.82,0.00019452,2]
[371732035,1752406251242,-475.48,0.00019452,2]
[371732036,1752406251257,-1074.94,0.00019452,2]
[371732037,1752406251272,-460.0,0.00019452,2]
[371732038,1752406251286,-653.92,0.00019452,2]
[371732039,1752406251301,-460.0,0.00019452,2]
[371732040,1752406251314,-1940.16,0.00019452,2]
[371732041,1752406251330,-460.0,0.00019452,2]
[371732042,1752406251345,-1955.59,0.00019452,2]
[371732043,1752406251360,-771.2,0.00019452,2]
[371732044,1752406251371,-460.0,0.00019452,2]
[371732045,1752406251383,-460.0,0.00019452,2]
[371732046,1752406251396,-1543.73,0.00019452,2]
[371732047,1752406251414,-151.0,0.000195,2]
[371732048,1752406251424,-57819.38048613,0.00019529,2]
[371732051,1752406254558,1345.07911911,0.000163,2]
[371732082,1752406497788,271.6940948,0.000273,120]
[371732094,1752406810758,24900.0,0.00015687,2]
[371732215,1752407433554,-573.27,0.00016428,3]
[371732216,1752407433564,-300.0,0.00016437,2]
[371732217,1752407433575,-460.0,0.00016438,2]
[371732218,1752407433585,-460.0,0.00016438,2]
[371732219,1752407433594,-567.84203406,0.00016438,2]
[371732220,1752407433604,-460.0,0.00016438,2]
[371732221,1752407433613,-460.0,0.00016438,2]
[371732222,1752407433624,-460.0,0.00016438,2]
[371732223,1752407433634,-460.0,0.00016438,2]
[371732224,1752407433644,-460.0,0.00016438,2]
[371732225,1752407433653,-460.0,0.00016438,2]
[371732226,1752407433663,-460.0,0.00016438,2]
[371732227,1752407433672,-460.0,0.00016438,2]
[371732228,1752407433682,-460.0,0.00016438,2]
[371732229,1752407433691,-460.0,0.00016438,2]
[371732230,1752407433702,-460.0,0.00016438,2]
[371732231,1752407433712,-460.0,0.00016438,2]
[371732232,1752407433722,-460.0,0.00016438,2]
[371732233,1752407433732,-261.0898832,0.00016438,2]
[371732234,1752407433742,-460.0,0.00016438,2]
[371732235,1752407433752,-460.0,0.00016438,2]
[371732236,1752407433762,-460.0,0.00016438,2]
[371732237,1752407433771,-460.0,0.00016438,2]
[371732238,1752407433902,-460.0,0.00016438,2]
[371732239,1752407433913,-460.0,0.00016438,2]
[371732240,1752407433923,-460.0,0.00016438,2]
[371732241,1752407433933,-460.0,0.00016438,2]
[371732242,1752407433943,-460.0,0.00016438,2]
[371732243,1752407433954,-460.0,0.00016438,2]
[371732244,1752407433964,-460.0,0.00016438,2]
[371732245,1752407433976,-460.0,0.00016438,2]
[371732246,1752407433985,-460.0,0.00016438,2]
[371732247,1752407433995,-460.0,0.00016438,2]
[371732248,1752407434006,-460.0,0.00016438,2]
[371732249,1752407434015,-460.0,0.00016438,2]
[371732250,1752407434026,-460.0,0.00016438,2]
[371732251,1752407434036,-460.0,0.00016438,2]
[371732252,1752407434046,-460.0,0.00016438,2]
[371732253,1752407434057,-460.0,0.00016438,2]
[371732254,1752407434067,-460.0,0.00016438,2]
[371732255,1752407434077,-460.93383793,0.00016438,2]
[371732256,1752407434087,-460.0,0.00016438,2]
[371732257,1752407434097,-460.0,0.00016438,2]
[371732258,1752407434106,-460.0,0.00016438,2]
[371732259,1752407434116,-460.0,0.00016438,2]
[371732260,1752407434127,-460.0,0.00016438,2]
[371732261,1752407434137,-460.0,0.00016438,2]
[371732262,1752407434146,-460.0,0.00016438,2]
[371732263,1752407434156,-460.0,0.00016438,2]
[371732264,1752407434165,-460.0,0.00016438,2]
[371732265,1752407434176,-460.0,0.00016438,2]
[371732266,1752407434187,-460.0,0.00016438,2]
[371732267,1752407434197,-460.0,0.00016438,2]
[371732268,1752407434208,-460.0,0.00016438,2]
[371732269,1752407434218,-460.0,0.00016438,2]
[371732270,1752407434229,-460.0,0.00016438,2]
[371732271,1752407434238,-460.0,0.00016438,2]
[371732272,1752407434247,-460.0,0.00016438,2]
[371732273,1752407434257,-463.0753921,0.00016438,2]
[371732274,1752407434267,-460.0,0.00016438,2]
[371732275,1752407434277,-460.0,0.00016438,2]
[371732276,1752407434286,-460.0,0.00016438,2]
[371732277,1752407434296,-460.0,0.00016438,2]
[371732278,1752407434306,-460.0,0.00016438,2]
[371732279,1752407434316,-460.0,0.00016438,2]
[371732280,1752407434326,-460.0,0.00016438,2]
[371732281,1752407434342,-460.0,0.00016438,2]
[371732282,1752407434356,-460.0,0.00016438,2]
[371732283,1752407434366,-460.0,0.00016438,2]
[371732284,1752407434376,-460.0,0.00016438,2]
[371732285,1752407434386,-437.81983444,0.00016438,2]
[371732286,1752407434396,-460.0,0.00016438,2]
[371732287,1752407434405,-460.0,0.00016438,2]
[371732288,1752407434415,-460.0,0.00016438,2]
[371732289,1752407434424,-460.0,0.00016438,2]
[371732290,1752407434434,-163.23242119,0.00016438,2]
[371732291,1752407434443,-460.0,0.00016438,2]
[371732292,1752407434453,-460.0,0.00016438,2]
[371732293,1752407434463,-460.0,0.00016438,2]
[371732294,1752407434472,-460.0,0.00016438,2]
[371732295,1752407434482,-460.0,0.00016438,2]
[371732296,1752407434491,-460.0,0.00016438,2]
[371732297,1752407434500,-362.23609815,0.00016438,2]
[371732298,1752407434510,-460.0,0.00016438,2]
[371732299,1752407434519,-522.99310749,0.00016438,2]
[371732300,1752407434528,-460.0,0.00016438,2]
[371732301,1752407434539,-460.0,0.00016438,2]
[371732302,1752407434548,-460.0,0.00016438,2]
[371732303,1752407434557,-460.0,0.00016438,2]
[371732304,1752407434565,-460.0,0.00016438,2]
[371732305,1752407434575,-461.39816857,0.00016438,2]
[371732306,1752407434584,-460.0,0.00016438,2]
[371732307,1752407434594,-460.0,0.00016438,2]
[371732308,1752407434604,-460.0,0.00016438,2]
[371732309,1752407434613,-460.0,0.00016438,2]
[371732310,1752407434623,-460.0,0.00016438,2]
[371732311,1752407434633,-460.0,0.00016438,2]
[371732312,1752407434642,-460.0,0.00016438,2]
[371732313,1752407434652,-460.0,0.00016438,2]
[371732314,1752407434661,-460.0,0.00016438,2]
[371732315,1752407434674,-460.0,0.00016438,2]
[371732316,1752407434683,-358.87034863,0.00016438,2]
[371732317,1752407434693,-460.0,0.00016438,2]
[371732318,1752407434703,-460.0,0.00016438,2]
[371732319,1752407434713,-460.0,0.00016438,2]
[371732320,1752407434722,-460.0,0.00016438,2]
[371732321,1752407434732,-460.0,0.00016438,2]
[371732322,1752407434742,-458.63090102,0.00016438,2]
[371732323,1752407434751,-460.0,0.00016438,2]
[371732324,1752407434761,-460.0,0.00016438,2]
[371732325,1752407434770,-460.0,0.00016438,2]
[371732326,1752407434779,-460.0,0.00016438,2]
[371732327,1752407434789,-460.0,0.00016438,2]
[371732328,1752407434798,-460.0,0.00016438,2]
[371732329,1752407434808,-460.0,0.00016438,2]
[371732330,1752407434817,-460.0,0.00016438,2]
[371732331,1752407434827,-460.0,0.00016438,2]
[371732332,1752407434840,-466.47298172,0.00016438,2]
[371732333,1752407434850,-460.0,0.00016438,2]
[371732334,1752407434858,-460.0,0.00016438,2]
[371732335,1752407434866,-460.0,0.00016438,2]
[371732336,1752407434876,-463.59093154,0.00016438,2]
[371732337,1752407434886,-460.0,0.00016438,2]
[371732338,1752407434895,-460.0,0.00016438,2]
[371732339,1752407434905,-460.0,0.00016438,2]
[371732340,1752407434916,-460.0,0.00016438,2]
[371732341,1752407434926,-460.0,0.00016438,2]
[371732342,1752407434936,-460.0,0.00016438,2]
[371732343,1752407434945,-460.0,0.00016438,2]
[371732344,1752407434955,-495.85,0.00016438,2]
[371732345,1752407434964,-460.0,0.00016438,2]
[371732346,1752407434974,-460.0,0.00016438,2]
[371732347,1752407434983,-556.7680337,0.00016438,2]
[371732348,1752407434992,-460.0,0.00016438,2]
[371732349,1752407435002,-460.0,0.00016438,2]
[371732350,1752407435011,-460.0,0.00016438,2]
[371732351,1752407435020,-460.0,0.00016438,2]
[371732352,1752407435030,-460.0,0.00016438,2]
[371732353,1752407435039,-460.0,0.00016438,2]
[371732354,1752407435048,-460.0,0.00016438,2]
[371732355,1752407435057,-460.0,0.00016438,2]
[371732356,1752407435067,-460.0,0.00016438,2]
[371732357,1752407435077,-460.0,0.00016438,2]
[371732358,1752407435086,-460.0,0.00016438,2]
[371732359,1752407435095,-460.0,0.00016438,2]
[371732360,1752407435105,-460.0,0.00016438,2]
[371732361,1752407435114,-380.00000001,0.00016438,2]
[371732362,1752407435124,-460.0,0.00016438,2]
[371732363,1752407435134,-460.0,0.00016438,2]
[371732364,1752407435143,-460.0,0.00016438,2]
[371732365,1752407435152,-460.0,0.00016438,2]
[371732366,1752407435162,-460.0,0.00016438,2]
[371732367,1752407435172,-460.0,0.00016438,2]
[371732368,1752407435182,-463.70370423,0.00016438,2]
[371732369,1752407435192,-460.0,0.00016438,2]
[371732370,1752407435202,-460.0,0.00016438,2]
[371732371,1752407435211,-460.0,0.00016438,2]
[371732372,1752407435220,-460.0,0.00016438,2]
[371732373,1752407435230,-460.0,0.00016438,2]
[371732374,1752407435240,-460.0,0.00016438,2]
[371732375,1752407435249,-460.0,0.00016438,2]
[371732376,1752407435259,-460.0,0.00016438,2]
[371732377,1752407435267,-460.0,0.00016438,2]
[371732378,1752407435277,-460.0,0.00016438,2]
[371732379,1752407435286,-460.0,0.00016438,2]
[371732380,1752407435296,-460.0,0.00016438,2]
[371732381,1752407435306,-460.0,0.00016438,2]
[371732382,1752407435316,-460.0,0.00016438,2]
[371732383,1752407435326,-731.2,0.00016438,2]
[371732384,1752407435336,-460.0,0.00016438,2]
[371732385,1752407435346,-460.0,0.00016438,2]
[371732386,1752407435355,-462.2303714,0.00016438,2]
[371732387,1752407435365,-460.0,0.00016438,2]
[371732388,1752407435375,-460.0,0.00016438,2]
[371732389,1752407435384,-460.0,0.00016438,2]
[371732390,1752407435394,-460.0,0.00016438,2]
[371732391,1752407435404,-460.0,0.00016438,2]
[371732392,1752407435414,-460.0,0.00016438,2]
[371732393,1752407435425,-460.0,0.00016438,2]
[371732394,1752407435435,-460.0,0.00016438,2]
[371732395,1752407435446,-460.0,0.00016438,2]
[371732396,1752407435456,-460.0,0.00016438,2]
[371732397,1752407435466,-460.0,0.00016438,2]
[371732398,1752407435476,-460.0,0.00016438,2]
[371732399,1752407435486,-460.0,0.00016438,2]
[371732400,1752407435495,-460.0,0.00016438,2]
[371732401,1752407435505,-565.35,0.00016438,2]
[371732402,1752407435515,-460.0,0.00016438,2]
[371732403,1752407435525,-460.0,0.00016438,2]
[371732404,1752407435534,-460.0,0.00016438,2]
[371732405,1752407435544,-460.0,0.00016438,2]
[371732406,1752407435554,-460.0,0.00016438,2]
[371732407,1752407435564,-460.0,0.00016438,2]
[371732408,1752407435574,-460.0,0.00016438,2]
[371732409,1752407435584,-460.0,0.00016438,2]
[371732410,1752407435594,-325.89887386,0.00016438,2]
[371732411,1752407435603,-460.0,0.00016438,2]
[371732412,1752407435613,-460.0,0.00016438,2]
[371732413,1752407435622,-460.0,0.00016438,2]
[371732414,1752407435632,-714.42,0.00016438,2]
[371732415,1752407435642,-224.58785423,0.00016438,2]
[371732416,1752407435842,-235.41214577,0.00016438,2]
[371732417,1752407435852,-142.36700849,0.00016438,2]
[371732450,1752407438557,-317.63299151,0.00016438,2]
[371732451,1752407438568,-460.0,0.00016438,2]
[371732452,1752407438578,-460.0,0.00016438,2]
[371732453,1752407438587,-460.0,0.00016438,2]
[371732454,1752407438598,-460.0,0.00016438,2]
[371732455,1752407438607,-383.05399616,0.00016438,2]
[371732456,1752407438616,-460.0,0.00016438,2]
[371732457,1752407438626,-554.02,0.00016438,2]
[371732458,1752407438635,-460.0,0.00016438,2]
[371732459,1752407438645,-596.85,0.00016438,2]
[371732460,1752407438655,-460.0,0.00016438,2]
[371732461,1752407438664,-460.0,0.00016438,2]
[371732462,1752407438673,-460.0,0.00016438,2]
[371732463,1752407438683,-460.0,0.00016438,2]
[371732464,1752407438692,-460.0,0.00016438,2]
[371732466,1752407438701,-460.0,0.00016438,2]
[371732467,1752407438711,-460.0,0.00016438,2]
[371732468,1752407438719,-460.0,0.00016438,2]
[371732469,1752407438730,-460.0,0.00016438,2]
[371732470,1752407438739,-460.0,0.00016438,2]
[371732471,1752407438750,-460.0,0.00016438,2]
[371732472,1752407438759,-460.0,0.00016438,2]
[371732473,1752407438768,-460.0,0.00016438,2]
[371732474,1752407438778,-460.0,0.00016438,2]
[371732475,1752407438788,-2829.27,0.00016438,2]
[371732476,1752407438798,-2270.21,0.00016438,2]
[371732477,1752407438807,-460.0,0.00016438,2]
[371732478,1752407438817,-460.0,0.00016438,2]
[371732479,1752407438826,-463.09784621,0.00016438,2]
[371732480,1752407438836,-460.0,0.00016438,2]
[371732481,1752407438850,-375.48260199,0.00016438,2]
[371732482,1752407438860,-460.0,0.00016438,2]
[371732483,1752407438870,-460.0,0.00016438,2]
[371732484,1752407438880,-424.21478281,0.00016438,2]
[371732485,1752407438891,-587.27,0.00016438,2]
[371732486,1752407438900,-166.9522666,0.00016438,2]
[371732487,1752407438910,-460.0,0.00016438,2]
[371732488,1752407438921,-460.0,0.00016438,2]
[371732489,1752407438932,-460.0,0.00016438,2]
[371732490,1752407438943,-460.0,0.00016438,2]
[371732491,1752407438953,-460.0,0.00016438,2]
[371732492,1752407438962,-565.36,0.00016438,2]
[371732493,1752407438972,-1536.42,0.00016438,2]
[371732494,1752407438981,-460.0,0.00016438,2]
[371732495,1752407438990,-460.0,0.00016438,2]
[371732496,1752407438999,-460.0,0.00016438,2]
[371732497,1752407439010,-460.0,0.00016438,2]
[371732498,1752407439019,-460.0,0.00016438,2]
[371732499,1752407439028,-500.0,0.00016438,2]
[371732500,1752407439038,-500.0,0.00016438,2]
[371732501,1752407439048,-465.84129256,0.00016438,2]
[371732502,1752407439058,-460.0,0.00016438,2]
[371732503,1752407439069,-460.0,0.00016438,2]
[371732504,1752407439078,-460.0,0.00016438,2]
[371732505,1752407439088,-460.0,0.00016438,2]
[371732506,1752407439097,-460.0,0.00016438,2]
[371732507,1752407439107,-460.0,0.00016438,2]
[371732508,1752407439116,-704.31,0.00016438,2]
[371732509,1752407439125,-489.16,0.00016438,2]
[371732510,1752407439135,-460.0,0.00016438,2]
[371732511,1752407439144,-498.33,0.00016438,2]
[371732512,1752407439154,-460.0,0.00016438,2]
[371732513,1752407439163,-460.0,0.00016438,2]
[371732514,1752407439173,-764.91,0.00016438,2]
[371732515,1752407439183,-460.0,0.00016438,2]
[371732516,1752407439192,-460.0,0.00016438,2]
[371732517,1752407439202,-460.0,0.00016438,2]
[371732518,1752407439212,-460.0,0.00016438,2]
[371732519,1752407439223,-460.0,0.00016438,2]
[371732520,1752407439234,-460.0,0.00016438,2]
[371732521,1752407439244,-2968.39,0.00016438,2]
[371732522,1752407439254,-460.0,0.00016438,2]
[371732523,1752407439265,-460.0,0.00016438,2]
[371732524,1752407439274,-460.0,0.00016438,2]
[371732525,1752407439283,-460.0,0.00016438,2]
[371732526,1752407439293,-460.0,0.00016438,2]
[371732527,1752407439303,-2262.14,0.00016438,2]
[371732528,1752407439313,-500.0,0.00016438,2]
[371732529,1752407439321,-500.0,0.00016438,2]
[371732530,1752407439331,-500.0,0.00016438,2]
[371732531,1752407439340,-1309.92,0.00016438,2]
[371732532,1752407439349,-548.88,0.00016438,2]
[371732533,1752407439359,-460.0,0.00016438,2]
[371732534,1752407439368,-460.0,0.00016438,2]
[371732535,1752407439378,-460.0,0.00016438,2]
[371732536,1752407439387,-460.0,0.00016438,2]
[371732537,1752407439397,-464.65284332,0.00016438,2]
[371732538,1752407439406,-460.0,0.00016438,2]
[371732539,1752407439416,-460.0,0.00016438,2]
[371732540,1752407439425,-460.0,0.00016438,2]
[371732541,1752407439433,-460.0,0.00016438,2]
[371732542,1752407439442,-460.0,0.00016438,2]
[371732543,1752407439452,-460.0,0.00016438,2]
[371732544,1752407439462,-460.0,0.00016438,2]
[371732546,1752407439471,-955.79,0.00016438,2]
[371732547,1752407439480,-254.82232781,0.00016438,2]
[371732548,1752407439489,-460.0,0.00016438,2]
[371732549,1752407439499,-1127.57,0.00016438,2]
[371732550,1752407439508,-460.0,0.00016438,2]
[371732558,1752407439631,-460.0,0.00016438,2]